bitfinex-derivatives/quotes_SOLF0:USTF0_20250325
["timestamp","ask_amount","ask_price","bid_price","bid_amount"]
[1742911686177,28.28545641,144.92,144.82,29.04]
[1742911686377,0.04410167,144.9,144.88,0.05240721]
[1742911687485,0.04410167,144.9,144.86,29.04]
[1742911687486,0.04410167,144.9,144.78,227.98]
[1742911687679,28.28545641,144.92,144.82,6.9039]
[1742911687879,29.04,144.91,144.78,227.98]
[1742911688181,29.04,144.91,144.79,29.04]
[1742911688682,29.04,144.91,144.84,0.04840144]
[1742911688683,0.04556097,144.86,144.84,0.04840144]
[1742911688977,29.04,144.91,144.84,0.04840144]
[1742911689283,6.9031,144.85,144.84,0.04840144]
[1742911689681,6.9,144.85,144.76,27.94478387]
[1742911689873,20.23277686,144.85,144.76,27.94478387]
[1742911690278,29.02,144.87,144.8,6.9051]
[1742911690478,29.02,144.87,144.76,27.94478387]
[1742911690878,0.04566409,144.83,144.8,0.04447096]
[1742911691185,29.02,144.82,144.8,0.04447096]
[1742911691387,6.9047,144.81,144.8,0.04447096]
[1742911692384,6.9067,144.77,144.73,6.9082]
[1742911692580,29.06566409,144.83,144.71,29.02]
[1742911692884,6.9061,144.79,144.71,29.02]
[1742911693074,29.02,144.83,144.71,29.02]
[1742911693277,6.9072,144.76,144.71,29.02]
[1742911693479,29.02,144.83,144.76,0.05251785]
[1742911693781,29.02,144.83,144.71,29.02]
[1742911694082,0.05280441,144.81,144.78,0.04449964]
[1742911696183,0.05280441,144.81,144.79,6.9057]
[1742911696388,0.05280441,144.81,144.78,0.04449964]
[1742911697587,6.9057,144.79,144.78,0.04449964]
[1742911698183,0.05280441,144.81,144.68,1.38236107]
[1742911698383,0.05280441,144.81,144.69,29.02]
[1742911698580,29.02,144.82,144.68,30.40236107]
[1742911698887,6.9079,144.75,144.68,30.40236107]
[1742911699084,29.02,144.77,144.69,29.02]
[1742911699389,0.04714006,144.74,144.72,0.04710325]
[1742911699784,29.02,144.79,144.69,29.02]
[1742911699981,0.04387977,144.74,144.72,0.04802316]
[1742911700191,0.04387977,144.74,144.73,6.9085]
[1742911700390,29.02,144.79,144.72,0.04802316]
[1742911700585,0.04909401,144.75,144.72,0.04802316]
[1742911700988,6.9085,144.73,144.72,0.04802316]
[1742911701194,29.0,144.74,144.66,6.9117]
[1742911701489,6.9099,144.71,144.64,256.92]
[1742911701681,29.0,144.74,144.64,256.92]
[1742911702085,6.9095,144.71,144.64,256.92]
[1742911702288,6.9095,144.71,144.66,6.9115]
[1742911702586,0.04851473,144.69,144.66,0.04701706]
[1742911702793,0.04851473,144.69,144.67,6.9114]
[1742911702990,0.04851473,144.69,144.66,0.04701706]
[1742911704591,0.04851473,144.69,144.66,6.95891706]
[1742911704792,0.04851473,144.69,144.66,0.04701706]
[1742911705193,0.04851473,144.69,144.66,6.95881706]
[1742911705391,0.04851473,144.69,144.66,0.04701706]
[1742911705796,0.04851473,144.69,144.66,6.95861706]
[1742911706801,0.04851473,144.69,144.66,0.04701706]
[1742911707500,0.04851473,144.69,144.67,6.9112]
[1742911707693,0.04851473,144.69,144.66,0.04701706]
[1742911707898,0.04851473,144.69,144.66,6.95891706]
[1742911708400,6.95901473,144.69,144.66,0.04701706]
[1742911708798,0.04851473,144.69,144.66,0.04701706]
[1742911709490,0.04851473,144.69,144.66,6.95861706]
[1742911709696,0.04851473,144.69,144.66,0.04701706]
[1742911710102,6.9114,144.67,144.66,0.04701706]
[1742911710302,0.04851473,144.69,144.66,0.04701706]
[1742911710897,6.9109,144.68,144.66,0.04701706]
[1742911711507,0.04851473,144.69,144.66,0.04701706]
[1742911711699,6.9109,144.68,144.66,0.04701706]
[1742911712506,0.04851473,144.69,144.57,227.92]
[1742911712801,29.0,144.7,144.57,227.92]
[1742911712802,29.0,144.7,144.59,6.915]
[1742911712994,6.9132,144.64,144.59,6.915]
[1742911713198,29.02,144.66,144.59,6.915]
[1742911713599,6.9135,144.63,144.59,6.915]
[1742911714399,0.04477888,144.64,144.57,227.92]
[1742911717002,6.9136,144.63,144.59,6.9148]
[1742911717306,6.9136,144.63,144.57,227.92]
[1742911717503,6.9136,144.63,144.59,6.9149]
[1742911717699,0.04477888,144.64,144.59,6.9149]
[1742911717896,0.04477888,144.64,144.57,227.92]
[1742911718504,0.04477888,144.64,144.6,6.9145]
[1742911719204,6.95787888,144.64,144.57,227.92]
[1742911719704,6.9135,144.63,144.6,6.9144]
[1742911720001,6.9135,144.63,144.57,227.92]
[1742911720205,0.04477888,144.64,144.52,13.8369]
[1742911720396,29.02,144.66,144.53,29.02]
[1742911720598,0.05239937,144.59,144.56,6.9164]
[1742911720802,6.9155,144.59,144.56,6.9164]
[1742911721102,6.96318578,144.59,144.52,29.02]
[1742911721699,0.04768578,144.59,144.5,0.22748788]
[1742911721902,29.02,144.61,144.5,0.22748788]
[1742911722103,0.05246952,144.56,144.5,0.22748788]
[1742911722303,29.0,144.55,144.5,0.22748788]
[1742911722910,29.0,144.55,144.47,9.39709383]
[1742911723204,20.23277686,144.52,144.46,102.46420753]
[1742911723406,6.9215,144.46,144.45,111.7791355]
[1742911723802,29.07115116,144.47,144.45,111.7791355]
[1742911724503,35.99225116,144.47,144.45,111.7791355]
[1742911724699,35.99225116,144.47,144.4,28.30639392]
[1742911724905,29.07115116,144.47,144.4,28.30639392]
[1742911725105,6.9218,144.46,144.4,35.23059392]
[1742911725408,29.07115116,144.47,144.4,28.30639392]
[1742911727306,6.9238,144.41,144.4,28.30639392]
[1742911727511,35.9438,144.41,144.4,28.30639392]
[1742911728108,6.9247,144.4,144.38,111.7791355]
[1742911728302,29.02,144.41,144.38,111.7791355]
[1742911728503,6.9248,144.39,144.38,111.7791355]
[1742911728707,29.02,144.41,144.31,0.41810213]
[1742911729107,0.04803176,144.37,144.32,6.9279]
[1742911729602,0.04803176,144.37,144.32,29.02]
[1742911730211,0.04803176,144.37,144.36,6.9262]
[1742911730414,0.04803176,144.37,144.36,35.9462]
[1742911730707,0.04803176,144.37,144.31,0.41810213]
[1742911730916,0.04803176,144.37,144.32,29.02]
[1742911731410,0.04803176,144.37,144.31,0.41810213]
[1742911731611,0.04803176,144.37,144.31,29.43810213]
[1742911732013,0.04803176,144.37,144.31,0.41810213]
[1742911733112,0.04803176,144.37,144.31,7.34640213]
[1742911733315,0.04803176,144.37,144.31,0.41810213]
[1742911733528,29.08803176,144.37,144.31,0.41810213]
[1742911736214,6.9264,144.36,144.31,7.34670213]
[1742911736410,29.08803176,144.37,144.31,0.41810213]
[1742911736616,29.08803176,144.37,144.33,6.9274]
[1742911736817,29.08803176,144.37,144.31,0.41810213]
[1742911737419,0.04803176,144.37,144.31,0.41810213]
[1742911737815,0.04803176,144.37,144.35,6.9264]
[1742911738019,0.04803176,144.37,144.31,0.41810213]
[1742911738427,0.04803176,144.37,144.36,6.9262]
[1742911739622,0.04803176,144.37,144.31,0.41810213]
[1742911740023,0.04803176,144.37,144.33,6.9274]
[1742911740223,0.04803176,144.37,144.31,0.41810213]
[1742911741823,0.04803176,144.37,144.35,6.9266]
[1742911742221,0.04803176,144.37,144.31,0.41810213]
[1742911743921,0.04803176,144.37,144.36,6.9262]
[1742911744322,0.04803176,144.37,144.31,0.41810213]
[1742911746521,0.04803176,144.37,144.35,6.9264]
[1742911746718,0.04803176,144.37,144.31,0.41810213]
[1742911746924,228.22,144.46,144.31,0.41810213]
[1742911747226,257.26,144.46,144.31,0.41810213]
[1742911747625,228.22,144.46,144.31,0.41810213]
[1742911747826,29.04,144.48,144.31,1.80400747]
[1742911748028,29.04,144.48,144.32,1.27200335]
[1742911748226,0.05006498,144.41,144.38,0.05217333]
[1742911748423,29.04,144.48,144.34,1.27188297]
[1742911748623,6.9256,144.38,144.34,6.9269]
[1742911748825,29.04,144.42,144.4,0.05020639]
[1742911749130,0.05047178,144.37,144.33,29.04]
[1742911749432,29.04,144.41,144.34,6.9267]
[1742911749728,6.9261,144.37,144.34,0.0481709]
[1742911749921,0.0451872,144.39,144.34,0.0481709]
[1742911750323,6.9267,144.35,144.34,0.0481709]
[1742911750523,0.0451872,144.39,144.31,0.41810213]
[1742911750524,29.02,144.36,144.31,0.41810213]
[1742911750925,6.9282,144.32,144.31,0.41810213]
[1742911751130,29.02,144.36,144.25,29.02]
[1742911751530,29.02,144.36,144.18,228.5]
[1742911751731,0.04695712,144.32,144.19,30.29322474]
[1742911752026,0.04626479,144.28,144.23,6.9322]
[1742911752220,0.04626479,144.28,144.22,29.02]
[1742911752418,29.02,144.32,144.22,29.02]
[1742911752625,0.04859318,144.26,144.23,6.9324]
[1742911752826,29.02,144.32,144.18,228.5]
[1742911753025,0.04549018,144.26,144.19,29.04]
[1742911753835,0.04549018,144.26,144.2,29.02]
[1742911754039,29.02,144.32,144.16,228.54]
[1742911754040,29.02,144.32,144.21,29.02]
[1742911754236,0.04429096,144.24,144.21,29.02]
[1742911754434,29.02,144.32,144.21,29.02]
[1742911754639,0.05073241,144.24,144.21,29.02]
[1742911754940,0.05223038,144.24,144.21,35.9533]
[1742911755136,0.05223038,144.24,144.16,228.54]
[1742911755336,0.05223038,144.24,144.17,29.04]
[1742911755538,6.98453038,144.24,144.19,6.9344]
[1742911755738,0.05223038,144.24,144.12,20.23277686]
[1742911755935,0.05223038,144.24,144.13,30.31374289]
[1742911756132,6.9322,144.24,144.19,6.9344]
[1742911756338,0.04710399,144.2,144.19,6.9344]
[1742911756533,6.9322,144.24,144.19,6.9344]
[1742911756736,0.0452675,144.21,144.17,29.04]
[1742911757246,0.04811053,144.2,144.17,29.04]
[1742911757541,29.04,144.28,144.17,29.04]
[1742911757842,29.04,144.31,144.17,29.04]
[1742911758339,29.04,144.31,144.22,6.9326]
[1742911758539,29.04,144.31,144.22,29.04]
[1742911758937,0.05108019,144.28,144.25,0.04546304]
[1742911761042,0.05108019,144.28,144.27,6.9306]
[1742911761344,0.05108019,144.28,144.25,0.04546304]
[1742911761639,0.05108019,144.28,144.26,6.931]
[1742911761944,0.05108019,144.28,144.25,0.04546304]
[1742911762939,0.05108019,144.28,144.27,6.9306]
[1742911763443,256.94545641,144.4,144.25,0.04546304]
[1742911763639,29.04,144.37,144.24,29.04]
[1742911764146,256.94545641,144.4,144.24,29.04]
[1742911764446,0.05338959,144.33,144.32,6.9282]
[1742911764641,256.94545641,144.4,144.32,6.9282]
[1742911764642,28.28545641,144.4,144.32,29.02]
[1742911765544,29.02,144.39,144.28,6.9298]
[1742911765740,29.02,144.39,144.26,29.02]
[1742911765946,0.04457599,144.35,144.32,0.04800086]
[1742911766145,29.06457599,144.35,144.32,0.04800086]
[1742911766346,6.9277,144.33,144.32,0.04800086]
[1742911766536,29.06457599,144.35,144.32,0.04800086]
[1742911767045,6.9277,144.33,144.32,0.04800086]
[1742911767747,0.04457599,144.35,144.32,0.04800086]
[1742911768340,6.9272,144.34,144.32,0.04800086]
[1742911768842,6.97147599,144.35,144.32,0.04800086]
[1742911769044,0.04457599,144.35,144.32,0.04800086]
[1742911769545,0.04457599,144.35,144.33,6.9274]
[1742911769748,0.04457599,144.35,144.32,0.04800086]
[1742911769949,0.04457599,144.35,144.34,6.9272]
[1742911771039,0.04457599,144.35,144.32,0.04800086]
[1742911771556,6.97147599,144.35,144.32,0.04800086]
[1742911771758,0.04457599,144.35,144.32,0.04800086]
[1742911772146,0.04457599,144.35,144.33,6.9277]
[1742911773052,0.04457599,144.35,144.34,6.9272]
[1742911775343,0.04457599,144.35,144.33,6.9276]
[1742911775552,0.04457599,144.35,144.32,0.04800086]
[1742911776455,29.0,144.34,144.25,29.0]
[1742911776856,6.9299,144.29,144.25,6.9312]
[1742911777153,29.0,144.34,144.25,6.9312]
[1742911777456,29.0,144.34,144.23,29.0]
[1742911777753,0.04956615,144.31,144.28,0.05305109]
[1742911778154,6.93,144.29,144.28,0.05305109]
[1742911779855,0.04956615,144.31,144.28,0.05305109]
[1742911780050,0.04956615,144.31,144.29,6.9293]
[1742911780254,0.04956615,144.31,144.28,0.05305109]
[1742911780749,0.04956615,144.31,144.28,6.98285109]
[1742911780946,0.04956615,144.31,144.28,0.05305109]
[1742911781548,0.04956615,144.31,144.3,6.9291]
[1742911781857,29.0,144.4,144.28,0.05305109]
[1742911782057,6.9256,144.38,144.27,29.0]
[1742911782755,29.0,144.4,144.27,29.0]
[1742911782959,0.04796027,144.34,144.31,0.0514749]
[1742911783152,29.0,144.4,144.32,29.0]
[1742911783352,228.62,144.43,144.33,6.9275]
[1742911783556,29.0,144.42,144.32,29.0]
[1742911783757,6.9257,144.38,144.37,0.05051497]
[1742911785860,0.04634771,144.39,144.37,0.05051497]
[1742911786361,35.96634771,144.39,144.2,263.82459427]
[1742911786553,20.23277686,144.38,144.21,30.27304233]
[1742911786759,6.9291,144.31,144.27,6.9305]
[1742911787061,29.0,144.34,144.26,29.0]
[1742911787262,228.62,144.43,144.29,0.04851697]
[1742911787263,0.04827837,144.31,144.29,0.04851697]
[1742911787559,6.927,144.35,144.26,29.0]
[1742911787765,0.04778617,144.31,144.29,0.05313005]
[1742911787963,0.04778617,144.31,144.3,29.0]
[1742911788161,0.04778617,144.31,144.3,35.9291]
[1742911788662,20.23277686,144.44,144.34,6.9269]
[1742911788866,29.0,144.41,144.3,29.0]
[1742911789767,0.04640433,144.37,144.34,0.04840074]
[1742911790261,0.04640433,144.37,144.36,6.9262]
[1742911790961,0.04640433,144.37,144.35,6.9265]
[1742911791464,0.04640433,144.37,144.34,29.04840074]
[1742911791663,0.04640433,144.37,144.36,6.9262]
[1742911792763,28.98,144.46,144.37,6.9256]
[1742911793262,28.98,144.46,144.36,28.98]
[1742911793662,6.9232,144.43,144.39,6.9246]
[1742911793863,0.04958579,144.42,144.4,0.0522046]
[1742911794269,0.04958579,144.42,144.41,6.9238]
[1742911794567,28.28545641,144.5,144.4,29.0322046]
[1742911794965,6.9208,144.48,144.43,6.9229]
[1742911795166,113.14182564,144.52,144.43,6.9229]
[1742911795368,217.26085046,144.53,144.43,6.9229]
[1742911795573,6.9207,144.48,144.44,6.9223]
[1742911795765,0.04443745,144.49,144.47,0.05078258]
[1742911796167,188.28085046,144.53,144.4,28.98]
[1742911796473,0.04736309,144.49,144.4,28.98]
[1742911796773,28.98,144.48,144.4,28.98]
[1742911796971,28.98,144.49,144.4,28.98]
[1742911797174,28.98,144.49,144.37,28.98]
[1742911797670,0.04523494,144.44,144.42,0.05315643]
[1742911798174,0.04950734,144.44,144.42,0.05315643]
[1742911798764,0.04950734,144.44,144.42,6.97615643]
[1742911798973,0.04950734,144.44,144.42,0.05315643]
[1742911799768,0.04950734,144.44,144.42,6.97625643]
[1742911800272,0.04950734,144.44,144.42,0.05315643]
[1742911800878,29.00950734,144.44,144.3,15.40264824]
[1742911801174,28.96,144.44,144.31,28.96]
[1742911802078,0.0509558,144.39,144.36,0.0491317]
[1742911802875,0.0509558,144.39,144.38,6.9253]
[1742911803077,0.0509558,144.39,144.36,0.0491317]
[1742911803577,0.0509558,144.39,144.37,6.9255]
[1742911804072,0.0509558,144.39,144.38,6.9253]
[1742911804278,13.8384,144.51,144.36,0.0491317]
[1742911804582,13.8401,144.49,144.35,28.96]
[1742911804875,6.9241,144.41,144.37,6.9257]
[1742911805076,28.96,144.45,144.37,6.9257]
[1742911805275,28.96,144.45,144.34,28.96]
[1742911805474,0.05065165,144.42,144.4,0.04679639]
[1742911805866,6.9238,144.41,144.4,0.04679639]
[1742911806074,0.05065165,144.42,144.4,0.04679639]
[1742911806978,6.9238,144.41,144.4,0.04679639]
[1742911807377,0.05065165,144.42,144.4,0.04679639]
[1742911808674,0.05065165,144.42,144.4,6.97089639]
[1742911809075,0.05065165,144.42,144.4,0.04679639]
[1742911809471,20.23277686,144.53,144.4,0.04679639]
[1742911809672,28.94,144.52,144.38,28.96]
[1742911810777,0.04657624,144.46,144.44,6.96827644]
[1742911810975,28.94,144.52,144.44,6.96827644]
[1742911811177,0.04613088,144.46,144.44,0.04587644]
[1742911811377,28.94,144.52,144.44,0.04587644]
[1742911811578,0.05007687,144.46,144.44,0.04587644]
[1742911811778,28.94,144.52,144.44,0.04587644]
[1742911811983,0.05220976,144.46,144.44,0.04587644]
[1742911812284,0.0468238,144.46,144.38,28.96]
[1742911812779,6.9237,144.42,144.38,6.9251]
[1742911813379,28.94,144.48,144.35,28.94]
[1742911813579,0.04508782,144.41,144.39,0.04916339]
[1742911813784,28.94,144.48,144.4,6.9243]
[1742911813978,0.05285015,144.41,144.4,6.9243]
[1742911814284,28.94,144.48,144.4,6.9243]
[1742911814483,0.04652426,144.42,144.4,6.9243]
[1742911814676,28.94,144.48,144.41,6.9238]
[1742911814877,28.94,144.47,144.41,6.9238]
[1742911815281,0.05306745,144.46,144.43,0.04798004]
[1742911815480,28.94,144.47,144.42,6.9234]
[1742911815785,0.0466627,144.46,144.43,0.04589607]
[1742911815986,28.94,144.47,144.35,28.94]
[1742911816177,6.9227,144.44,144.39,6.9247]
[1742911816487,28.94,144.47,144.35,28.94]
[1742911816686,0.0482866,144.43,144.4,0.04450498]
[1742911816879,6.9713866,144.43,144.4,0.04450498]
[1742911817283,0.0482866,144.43,144.42,6.9234]
[1742911817486,0.0482866,144.43,144.4,0.04450498]
[1742911818475,35.8597,144.5,144.46,6.9214]
[1742911818684,28.76895081,144.54,144.43,28.94]
[1742911819586,0.05095017,144.5,144.47,0.04518968]
[1742911819776,0.05095017,144.5,144.47,28.98518968]
[1742911819976,0.05095017,144.5,144.49,6.92]
[1742911820685,0.05095017,144.5,144.47,28.98518968]
[1742911820686,28.92,144.56,144.53,6.9178]
[1742911820890,28.76895081,144.58,144.47,28.94]
[1742911821086,28.92,144.57,144.47,28.94]
[1742911821691,28.92,144.57,144.38,262.54247686]
[1742911821692,6.9198,144.5,144.46,6.9214]
[1742911821891,6.9198,144.5,144.44,28.92]
[1742911822091,28.92,144.53,144.47,0.05040163]
[1742911822289,0.05252434,144.48,144.47,6.97110163]
[1742911822491,28.92,144.53,144.47,6.97110163]
[1742911822685,0.0474996,144.49,144.47,6.97110163]
[1742911822890,0.0474996,144.49,144.48,6.9205]
[1742911823488,0.0474996,144.49,144.47,6.97110163]
[1742911823688,0.0474996,144.49,144.47,0.05040163]
[1742911823888,0.0474996,144.49,144.48,6.9205]
[1742911824689,0.0474996,144.49,144.47,0.05040163]
[1742911825787,0.0474996,144.49,144.48,6.9205]
[1742911826395,0.0474996,144.49,144.47,6.97110163]
[1742911826693,0.0474996,144.49,144.47,0.05040163]
[1742911827598,0.0474996,144.49,144.48,6.9205]
[1742911829499,0.0474996,144.49,144.47,0.05040163]
[1742911830399,0.0474996,144.49,144.47,6.97120163]
[1742911830699,28.92,144.55,144.47,28.95040163]
[1742911831195,28.9,144.58,144.47,28.95040163]
[1742911831396,20.23277686,144.62,144.49,6.9196]
[1742911831591,28.9,144.61,144.47,28.9]
[1742911831795,271.05585081,144.63,144.47,28.9]
[1742911831999,0.04489021,144.55,144.54,6.9176]
[1742911832195,257.22895081,144.63,144.53,0.04473227]
[1742911832196,28.76895081,144.63,144.53,0.04473227]
[1742911832400,28.76895081,144.63,144.55,6.917]
[1742911832601,57.66895081,144.63,144.55,6.917]
[1742911832799,57.66895081,144.63,144.52,28.9]
[1742911832995,57.66895081,144.63,144.55,6.917]
[1742911832996,6.9156,144.59,144.55,6.917]
[1742911833194,28.9,144.62,144.52,28.9]
[1742911833400,6.9162,144.57,144.56,0.04440712]
[1742911834697,6.96859632,144.58,144.56,0.04440712]
[1742911834899,0.05269632,144.58,144.56,0.04440712]
[1742911835397,28.95269632,144.58,144.49,28.9]
[1742911835902,6.9183,144.53,144.5,6.9193]
[1742911836096,28.9,144.58,144.46,28.88]
[1742911836603,8.137e-05,144.53,144.51,0.04530597]
[1742911836804,28.9,144.58,144.51,28.92530597]
[1742911837004,28.88,144.61,144.55,6.9169]
[1742911837205,28.88,144.61,144.51,28.88]
[1742911837506,28.88,144.61,144.53,6.918]
[1742911837705,0.04696097,144.58,144.56,0.04866783]
[1742911837999,6.9165,144.57,144.56,0.04866783]
[1742911838205,0.04696097,144.58,144.56,0.04866783]
[1742911838911,20.23277686,144.68,144.56,0.04866783]
[1742911839102,6.9132,144.64,144.6,6.9145]
[1742911839298,28.88,144.65,144.55,28.88]
[1742911839606,6.9135,144.63,144.55,28.88]
[1742911839910,28.88,144.66,144.55,28.88]
[1742911840207,0.05031283,144.6,144.59,6.9152]
[1742911840408,28.88,144.66,144.55,28.88]
[1742911840605,0.04493916,144.6,144.58,0.04643071]
[1742911840809,28.76895081,144.69,144.59,28.88]
[1742911841212,28.76895081,144.69,144.62,6.9135]
[1742911841607,28.88,144.68,144.59,28.88]
[1742911841910,0.04764766,144.67,144.59,28.88]
[1742911842105,0.04764766,144.67,144.62,0.05321652]
[1742911842305,6.9133,144.63,144.62,0.05321652]
[1742911843004,0.05266382,144.64,144.56,28.86]
[1742911843005,28.91266382,144.64,144.56,28.86]
[1742911843205,28.86,144.64,144.54,28.86]
[1742911843401,28.86,144.64,144.56,6.9166]
[1742911843599,6.9149,144.6,144.56,6.9166]
[1742911843911,28.86,144.64,144.58,6.9156]
[1742911844105,0.04501267,144.59,144.58,6.9156]
[1742911844309,28.86,144.64,144.57,0.05103365]
[1742911844807,0.05131089,144.6,144.57,0.05103365]
[1742911845009,0.05131089,144.6,144.59,6.9152]
[1742911845304,28.86,144.65,144.57,0.05103365]
[1742911845509,28.86,144.66,144.59,6.9149]
[1742911845901,28.86,144.66,144.54,28.86]
[1742911846302,0.05000472,144.61,144.59,0.05318466]
[1742911846509,28.86,144.66,144.59,0.05318466]
[1742911846706,0.0457933,144.61,144.59,0.05318466]
[1742911846907,6.9112,144.68,144.58,28.86]
[1742911847201,28.86,144.7,144.58,28.86]
[1742911847408,28.86,144.7,144.64,6.9124]
[1742911847710,28.86,144.7,144.58,28.86]
[1742911847908,257.04895081,144.75,144.58,28.86]
[1742911847909,257.04895081,144.75,144.59,13.8305]
[1742911848112,257.04895081,144.75,144.63,0.0519037]
[1742911848113,5.363e-05,144.65,144.63,0.0519037]
[1742911848306,28.76895081,144.75,144.64,28.86]
[1742911849408,0.05291226,144.71,144.7,6.91]
[1742911849606,57.62895081,144.75,144.7,6.91]
[1742911849810,0.0495301,144.72,144.7,6.91]
[1742911850007,0.0495301,144.72,144.71,6.9095]
[1742911850304,0.0495301,144.72,144.69,0.04856707]
[1742911850503,0.0495301,144.72,144.7,6.9097]
[1742911850700,0.0495301,144.72,144.69,0.04856707]
[1742911851413,28.86,144.8,144.69,0.04856707]
[1742911851605,28.86,144.8,144.68,28.86]
[1742911851912,49.00172767,144.83,144.68,28.86]
[1742911851913,77.86172767,144.83,144.68,28.86]
[1742911852612,0.04228644,144.77,144.74,0.04702209]
[1742911852911,28.84,144.8,144.68,28.86]
[1742911853108,0.04228644,144.77,144.74,0.04633227]
[1742911855015,6.9074,144.76,144.74,0.04633227]
[1742911855211,0.04228644,144.77,144.74,0.04633227]
[1742911855517,6.9076,144.75,144.74,0.04633227]
[1742911855916,28.88228644,144.77,144.67,6.9111]
[1742911856214,28.84,144.77,144.67,6.9111]
[1742911856418,6.9098,144.71,144.66,6.9115]
[1742911856614,6.9098,144.71,144.65,28.84]
[1742911856811,28.84,144.77,144.65,28.84]
[1742911857025,28.84,144.77,144.67,0.05077659]
[1742911857213,0.04714085,144.72,144.65,28.84]
[1742911857408,0.04714085,144.72,144.71,0.04644862]
[1742911857613,0.04714085,144.72,144.65,28.84]
[1742911858017,0.04714085,144.72,144.7,6.9098]
[1742911858320,0.04714085,144.72,144.67,0.0442969]
[1742911860718,0.04714085,144.72,144.69,6.9101]
[1742911861121,0.04714085,144.72,144.67,0.0442969]
[1742911862117,20.23277686,144.83,144.67,0.0442969]
[1742911862419,28.82,144.82,144.65,42.6647]
[1742911862618,6.9077,144.75,144.65,42.6647]
[1742911863015,28.82,144.82,144.65,42.6647]
[1742911863420,0.04147785,144.75,144.72,0.04979064]
[1742911863617,6.9059,144.79,144.74,6.9078]
[1742911863821,0.04147785,144.75,144.74,6.9078]
[1742911864118,6.9059,144.79,144.74,6.9078]
[1742911864422,0.04147785,144.76,144.73,28.86364463]
[1742911864619,0.04147785,144.76,144.69,228.0]
[1742911864818,6.9076,144.75,144.73,0.05166101]
[1742911865015,0.04147785,144.76,144.73,0.05166101]
[1742911865416,6.9078,144.75,144.73,0.05166101]
[1742911865616,0.04147785,144.76,144.73,0.05166101]
[1742911866215,0.04147785,144.76,144.73,28.85166101]
[1742911866422,0.04147785,144.76,144.75,6.9076]
[1742911866626,0.04147785,144.76,144.73,28.85166101]
[1742911868128,0.04147785,144.76,144.73,0.05166101]
[1742911869314,6.908,144.75,144.73,0.05166101]
[1742911869722,0.04147785,144.76,144.73,0.05166101]
[1742911870815,0.04147785,144.76,144.75,6.9076]
[1742911871916,0.04147785,144.76,144.74,6.9079]
[1742911872519,0.04147785,144.76,144.75,6.9076]
[1742911872821,334.80857856,144.88,144.73,0.05166101]
[1742911872822,106.68857856,144.88,144.73,0.05166101]
[1742911873027,6.9036,144.84,144.8,6.9052]
[1742911873226,28.8,144.87,144.76,28.8]
[1742911873427,28.8,144.87,144.77,28.8]
[1742911874027,6.9041,144.83,144.81,0.05190752]
[1742911874330,28.8,144.87,144.81,0.05190752]
[1742911874627,6.9042,144.82,144.81,0.05190752]
[1742911875720,6.9054,144.8,144.76,6.9069]
[1742911875921,28.8,144.87,144.75,28.78]
[1742911876118,6.904,144.83,144.75,28.78]
[1742911876321,6.904,144.83,144.79,6.9053]
[1742911876827,0.04883262,144.82,144.8,0.05165485]
[1742911877029,6.9036,144.84,144.8,6.95655485]
[1742911877326,0.05120428,144.82,144.8,0.05165485]
[1742911877527,6.9041,144.83,144.8,0.05165485]
[1742911877729,0.04396393,144.82,144.8,0.05165485]
[1742911878223,6.94826393,144.82,144.8,0.05165485]
[1742911878421,0.04396393,144.82,144.8,0.05165485]
[1742911878826,0.04396393,144.82,144.81,6.9047]
[1742911879023,0.89441759,144.91,144.8,0.05165485]
[1742911879224,6.9012,144.89,144.85,6.9025]
[1742911879519,0.89441759,144.91,144.83,28.78]
[1742911879928,6.9015,144.88,144.84,6.903]
[1742911880131,6.9015,144.88,144.86,0.04568869]
[1742911880325,0.89441759,144.91,144.86,0.04568869]
[1742911880926,0.89441759,144.91,144.88,6.9011]
[1742911881122,0.89441759,144.91,144.86,0.04568869]
[1742911881527,29.65441759,144.91,144.86,0.04568869]